Workbook

Sheet Disclaimer (hidden)
B2: Legal disclaimer
B3: Please fully read this disclaimer before using this model
E34: www.lentransolutions.com | T34: Level 8, Suite 3, 234 George Street, NSW 2000
E35: contact@lentransolutions.com | T35: ABN: 66 615 474 523

Sheet Title
C12: =Model_Name -> NPV & IRR
C13: LMS Tutorial
C14: Sydney, March 2017
E34: www.lentransolutions.com | T34: Level 8, Suite 3, 234 George Street, NSW 2000
E35: contact@lentransolutions.com | T35: ABN: 66 615 474 523

Sheet Inputs
C1: Assumptions
C2: ="Tutorial: "&Model_Name -> Tutorial: NPV & IRR
C6: Tutorial inputs
C7: Timing
C8: Model start date | D8: Date | E8: 2017-12-31
C10: Cashflows
C11: Operating quarter | E11: Total | F11: 1 | G11: =F11+1 -> 2 | H11: =G11+1 -> 3 | I11: 4 | J11: 5 | K11: 6 | L11: 7 | M11: 8 | N11: 9 | O11: 10 | P11: 11 | Q11: =P11+1 -> 12
C12: Revenue | D12: AUD '000 | E12: =SUM(F12:Q12) -> 5820 | F12: 0 | G12: 0 | H12: 530 | I12: 550 | J12: 565 | K12: 560 | L12: 575 | M12: 590 | N12: 605 | O12: 600 | P12: 615 | Q12: 630
C13: Opex | D13: AUD '000 | E13: =SUM(F13:Q13) -> 3785.7625 | F13: 0 | G13: 0 | H13: 344.5 | I13: 339.625 | J13: 367.25 | K13: 364 | L13: 392.4375 | M13: 383.5 | N13: 393.25 | O13: 351 | P13: 399.75 | Q13: 450.45
C14: Capex | D14: AUD '000 | E14: 1394 | F14: 560 | G14: 834 | H14: 0 | I14: 0 | J14: 0 | K14: 0 | L14: 0 | M14: 0 | N14: 0 | O14: 0 | P14: 0 | Q14: 0
C16: Operating quarter | E16: Total | F16: 1 | G16: =F16+1 -> 2 | H16: =G16+1 -> 3 | I16: 4 | J16: 5 | K16: 6 | L16: 7 | M16: 8 | N16: 9 | O16: 10 | P16: 11 | Q16: =P16+1 -> 12
C17: Net cashflows | D17: AUD '000 | E17: =SUM(F17:Q17) -> 1665 | F17: -2040 | G17: 515 | H17: 1530 | I17: 1550 | J17: 565 | K17: 560 | L17: 575 | M17: 590 | N17: 605 | O17: 600 | P17: 615 | Q17: -4000
C19: Returns
C20: Discount rate | D20: % | E20: 0.12
C22: Technical inputs
C23: General
C24: Tutorial name | D24: Name | E24: NPV & IRR
C25: Months per quarter | D25: Number | E25: 3
C26: Quarters per year | D26: Number | E26: 4
C27: Days per year | D27: Number | E27: 365
C28: Small number | D28: Number | E28: 1e-05

Sheet Calcs
C1: Calculations
C2: ="Tutorial: "&Model_Name -> Tutorial: NPV & IRR
C3: Period end | D3: Date | G3: =Inputs!E8 -> 2017-12-31 | H3: =EOMONTH(G3,Mths_Qtr) -> 2018-03-31 | I3: 2018-06-30 | J3: 2018-09-30 | K3: 2018-12-31 | L3: 2019-03-31 | M3: 2019-06-30 | N3: 2019-09-30 | O3: 2019-12-31 | P3: 2020-03-31 | Q3: 2020-06-30 | R3: 2020-09-30 | S3: 2020-12-31
C5: Key calculations
C6: Timing
C7: Forecast quarter | D7: Num# | G7: 0 | H7: =G7+1 -> 1 | I7: =H7+1 -> 2 | J7: 3 | K7: 4 | L7: 5 | M7: 6 | N7: 7 | O7: 8 | P7: 9 | Q7: 10 | R7: 11 | S7: 12
C8: Days in period | D8: Days | H8: =H3-G3 -> 90 | I8: =I3-H3 -> 91 | J8: 92 | K8: 92 | L8: 90 | M8: 91 | N8: 92 | O8: 92 | P8: 91 | Q8: 91 | R8: 92 | S8: 92
C10: Valuation
C11: Cashflows
C12: =Inputs!C12 -> Revenue | D12: AUD '000 | G12: =SUM(H12:S12) -> 5820 | H12: =Inputs!F12 -> 0 | I12: =Inputs!G12 -> 0 | J12: =Inputs!H12 -> 530 | K12: =Inputs!I12 -> 550 | L12: =Inputs!J12 -> 565 | M12: =Inputs!K12 -> 560 | N12: =Inputs!L12 -> 575 | O12: =Inputs!M12 -> 590 | P12: =Inputs!N12 -> 605 | Q12: =Inputs!O12 -> 600 | R12: =Inputs!P12 -> 615 | S12: =Inputs!Q12 -> 630
C13: =Inputs!C13 -> Opex | D13: AUD '000 | G13: -3785.7625 | H13: =-Inputs!F13 -> 0 | I13: =-Inputs!G13 -> 0 | J13: =-Inputs!H13 -> -344.5 | K13: =-Inputs!I13 -> -339.625 | L13: =-Inputs!J13 -> -367.25 | M13: =-Inputs!K13 -> -364 | N13: =-Inputs!L13 -> -392.4375 | O13: =-Inputs!M13 -> -383.5 | P13: =-Inputs!N13 -> -393.25 | Q13: =-Inputs!O13 -> -351 | R13: =-Inputs!P13 -> -399.75 | S13: =-Inputs!Q13 -> -450.45
C14: =Inputs!C14 -> Capex | D14: AUD '000 | G14: -1394 | H14: =-Inputs!F14 -> -560 | I14: =-Inputs!G14 -> -834 | J14: =-Inputs!H14 -> 0 | K14: =-Inputs!I14 -> 0 | L14: =-Inputs!J14 -> 0 | M14: =-Inputs!K14 -> 0 | N14: =-Inputs!L14 -> 0 | O14: =-Inputs!M14 -> 0 | P14: =-Inputs!N14 -> 0 | Q14: =-Inputs!O14 -> 0 | R14: =-Inputs!P14 -> 0 | S14: =-Inputs!Q14 -> 0
C15: Total | D15: AUD '000 | G15: 640.2375 | H15: =SUM(H12:H14) -> -560 | I15: =SUM(I12:I14) -> -834 | J15: 185.5 | K15: 210.375 | L15: 197.75 | M15: 196 | N15: 182.5625 | O15: 206.5 | P15: 211.75 | Q15: 249 | R15: 215.25 | S15: 179.55
C17: Evaluation cashflows | D17: AUD '000 | G17: =-Small_number -> -1e-05 | H17: =H15 -> -560 | I17: =I15 -> -834 | J17: 185.5 | K17: 210.375 | L17: 197.75 | M17: 196 | N17: 182.5625 | O17: 206.5 | P17: 211.75 | Q17: 249 | R17: 215.25 | S17: 179.55
C19: NPV | E19: % p.a | F19: % p.q (no. 1) | G19: % p.q (no. 2)
C20: Discount rate | D20: % p.p. | E20: =Inputs!E20 -> 0.12 | F20: =E20/Qtr_Yr -> 0.03 | G20: =((1+$E$20)^(1/Qtr_Yr))-1 -> 0.02873734472 | H20: =((1+$E$20)^(H8/Days_Yr))-1 -> 0.02833815695 | I20: 0.02865749477 | J20: 0.02897693176 | K20: 0.02897693176 | L20: 0.02833815695 | M20: 0.02865749477 | N20: 0.02897693176 | O20: 0.02897693176 | P20: 0.02865749477 | Q20: 0.02865749477 | R20: 0.02897693176 | S20: 0.02897693176
C22: 1st principles
C23: Discount index | D23: Index | E23: NPV | G23: 1 | H23: =(1+H20)*G23 -> 1.028338157 | I23: 1.057807752 | J23: 1.088459775 | K23: 1.12 | L23: 1.151738736 | M23: 1.184744683 | N23: 1.219074948 | O23: 1.2544 | P23: 1.290347961 | Q23: 1.327326101 | R23: 1.365787939 | S23: 1.405364283
C24: Discounted cashflows | D24: AUD '000 | E24: =SUM(H24:S24) -> 313.8370547 | H24: =H17/H23 -> -544.567948 | I24: -788.4230364 | J24: 170.4243043 | K24: 187.8348214 | L24: 171.6969256 | M24: 165.4364885 | N24: 149.7549435 | O24: 164.6205357 | P24: 164.1030221 | Q24: 187.5951959 | R24: 157.6013331 | S24: 127.760469
C26: NPV & XNPV function
C27: NPV no. 1 | D27: AUD '000 | E27: =NPV(E20,$H$17:$S$17) -> -257.1393384
C28: NPV no. 2 | D28: AUD '000 | E28: =NPV(F20,$H$17:$S$17) -> 302.0428244
C29: NPV no. 3 | D29: AUD '000 | E29: =NPV(G20,$H$17:$S$17) -> 314.2073203
C30: NPV no. 4 | D30: AUD '000 | E30: =NPV(G20,$G$17:$S$17) -> 305.4300613
C31: NPV no. 5 | D31: AUD '000 | E31: =G17+NPV(G20,$H$17:$S$17) -> 314.2073103
C32: XNPV | D32: AUD '000 | E32: =XNPV($E$20,$G$17:$S$17,$G$3:$S$3) -> 313.8370447
C34: Discrepancy to 1st principles
C35: =C27 -> NPV no. 1 | D35: AUD '000 | E35: =$E$24-E27 -> 570.9763931
C36: =C28 -> NPV no. 2 | D36: AUD '000 | E36: 11.79423028
C37: =C29 -> NPV no. 3 | D37: AUD '000 | E37: -0.3702655547
C38: =C30 -> NPV no. 4 | D38: AUD '000 | E38: 8.406993405
C39: =C31 -> NPV no. 5 | D39: AUD '000 | E39: -0.3702555547
C40: =C32 -> XNPV | D40: AUD '000 | E40: 9.999999406e-06
C42: IRR
C43: XIRR no. 1 | D43: % | E43: =XIRR(H17:S17,$H$3:$S$3) -> 0.3019325078
C44: XIRR no. 2 | D44: % | E44: =XIRR(G44:S44,$G$3:$S$3) -> 2.980232239e-09 | G44: 0 | H44: =H17 -> -560 | I44: -834 | J44: 185.5 | K44: 210.375 | L44: 197.75 | M44: 196 | N44: 182.5625 | O44: 206.5 | P44: 211.75 | Q44: 249 | R44: 215.25 | S44: 179.55
C45: XIRR no. 3 | D45: % | E45: =XIRR(G17:S17,$G$3:$S$3) -> 0.3019324958
C47: XNPV (vs. XIRR) check | D47: AUD '000 | E47: =XNPV(E45,G17:S17,$G$3:$S$3) -> 1.853720647e-06
